bitfinex/quotes_BTCUSD_20220226
["timestamp","ask_amount","ask_price","bid_price","bid_amount"]
[1645886091571,0.376903,39380.0,39379.0,0.002]
[1645886091792,0.376903,39380.0,39361.0,0.01]
[1645886091793,0.376903,39379.0,39361.0,0.01]
[1645886091969,0.428303,39378.0,39361.0,0.01]
[1645886092170,0.0514,39377.0,39361.0,0.01]
[1645886092367,1.05,39375.0,39344.0,0.2]
[1645886092595,0.17754283,39345.0,39342.0,0.2]
[1645886092789,0.00014726,39371.0,39342.0,0.2]
[1645886092790,0.0514,39360.0,39342.0,0.2]
[1645886092994,0.0514,39360.0,39338.0,0.00445902]
[1645886092995,0.428303,39359.0,39338.0,0.00445902]
[1645886093195,0.19768644,39355.0,39338.0,0.00445902]
[1645886093390,1.1,39341.0,39331.0,0.01]
[1645886093598,0.376903,39340.0,39331.0,0.01]
[1645886093800,0.376903,39340.0,39322.0,0.05]
[1645886093801,0.15533633,39324.0,39322.0,0.05]
[1645886093995,0.15533633,39324.0,39312.0,0.01016]
[1645886093996,0.428303,39323.0,39312.0,0.01016]
[1645886094194,0.428303,39323.0,39310.0,0.1998]
[1645886094195,0.376903,39322.0,39310.0,0.1998]
[1645886094394,0.15533633,39324.0,39310.0,0.1998]
[1645886094395,0.0514,39321.0,39310.0,0.1998]
[1645886094591,0.428303,39320.0,39310.0,0.1998]
[1645886094795,0.0514,39319.0,39311.0,0.376903]
[1645886094991,0.6425,39332.0,39320.0,0.66517562]
[1645886095200,0.0514,39331.0,39321.0,0.376903]
[1645886095396,0.01358741,39339.0,39321.0,0.376903]
[1645886095594,0.00014715,39345.0,39321.0,0.376903]
[1645886095794,0.00014715,39345.0,39323.0,0.1]
[1645886095993,0.1401848,39345.0,39336.0,0.15508042]
[1645886096195,0.1401848,39345.0,39331.0,0.0003491]
[1645886096450,0.14053377,39345.0,39332.0,0.376903]
[1645886096645,0.00034897,39345.0,39332.0,0.376903]
[1645886096850,0.00034897,39345.0,39333.0,0.06156]
[1645886097346,0.00139554,39355.0,39333.0,0.01016]
[1645886097347,0.376903,39344.0,39333.0,0.01016]
[1645886097549,0.376903,39342.0,39332.0,0.002]
[1645886097748,0.376903,39339.0,39337.0,0.00034907]
[1645886097946,0.376903,39339.0,39332.0,0.002]
[1645886097947,0.376903,39337.0,39332.0,9.07e-06]
[1645886098149,1.526903,39333.0,39321.0,0.85]
[1645886098346,0.376903,39327.0,39321.0,0.8]
[1645886098746,0.17192873,39330.0,39321.0,0.8]
[1645886098949,0.3045847,39330.0,39327.0,0.57330725]
[1645886099150,0.376903,39329.0,39327.0,0.57330725]
[1645886099853,0.376903,39329.0,39322.0,0.00473843]
[1645886099854,0.376903,39326.0,39322.0,0.00473482]
[1645886100091,0.02555,39325.0,39322.0,0.00473482]
[1645886100291,0.476903,39326.0,39322.0,0.00240482]
[1645886100292,0.53315024,39324.0,39322.0,0.00240482]
[1645886100495,1.2,39320.0,39301.0,0.02016]
[1645886100693,0.34768644,39316.0,39301.0,0.01]
[1645886100892,0.34768644,39316.0,39302.0,0.05]
[1645886100893,0.376903,39315.0,39302.0,0.05]
[1645886101092,0.426903,39315.0,39314.0,0.00034929]
[1645886101293,0.57749847,39315.0,39314.0,0.00034929]
[1645886101699,0.426903,39315.0,39314.0,0.00034929]
[1645886101896,0.1024,39316.0,39314.0,0.00034929]
[1645886101899,0.001,39316.0,39314.0,0.00034929]
[1645886102090,0.001,39316.0,39310.0,0.376903]
[1645886102293,0.001,39316.0,39314.0,0.376903]
[1645886102691,0.001,39316.0,39313.0,0.00034904]
[1645886102692,0.34768644,39326.0,39313.0,0.00034904]
[1645886102894,0.30954554,39331.0,39313.0,0.00034904]
[1645886102895,0.7806,39322.0,39313.0,0.00034904]
[1645886103092,0.19768644,39324.0,39304.0,0.01534904]
[1645886103093,1.2,39320.0,39304.0,0.01534904]
[1645886103293,1.258903,39319.0,39313.0,0.002]
[1645886103498,0.1014,39319.0,39313.0,0.002]
[1645886103694,0.59170564,39318.0,39313.0,0.002]
[1645886103935,0.34768644,39314.0,39313.0,0.002]
[1645886104134,0.78582534,39314.0,39313.0,0.002]
[1645886104339,1.25,39313.0,39304.0,0.01534904]
[1645886104535,0.676903,39312.0,39304.0,0.01534904]
[1645886104736,0.15,39309.0,39304.0,0.01534904]
[1645886104940,0.15,39309.0,39301.0,0.01]
[1645886104941,0.19768644,39303.0,39301.0,0.01]
[1645886105141,0.19768644,39303.0,39289.0,0.015]
[1645886105142,0.16666604,39295.0,39289.0,0.015]
[1645886105438,0.676903,39294.0,39289.0,0.015]
[1645886105636,0.72148152,39294.0,39289.0,0.015]
[1645886105840,0.1,39294.0,39290.0,0.00034312]
[1645886106037,0.377439,39293.0,39290.0,0.00034312]
[1645886106241,0.05,39292.0,39290.0,0.00034312]
[1645886106440,0.05,39292.0,39280.0,0.05]
[1645886106441,1.2,39290.0,39280.0,0.05]
[1645886106639,0.428839,39289.0,39271.0,0.01]
[1645886106843,0.427439,39289.0,39271.0,0.31]
[1645886107042,0.2097,39300.0,39273.0,0.1]
[1645886107241,0.2097,39300.0,39271.0,0.31]
[1645886107242,0.0514,39299.0,39286.0,0.1]
[1645886107440,0.0514,39299.0,39278.0,0.05]
[1645886107687,0.0514,39299.0,39279.0,0.4]
[1645886107688,2.68028031,39296.0,39279.0,0.4]
[1645886107885,2.68028031,39296.0,39277.0,0.1]
[1645886108086,2.68028031,39296.0,39278.0,0.18537922]
[1645886108087,0.377439,39287.0,39278.0,0.18537922]
[1645886108288,0.377439,39286.0,39278.0,0.47520922]
[1645886108588,0.2597,39300.0,39286.0,0.377439]
[1645886108589,0.2097,39300.0,39286.0,0.377439]
[1645886108788,0.2097,39300.0,39299.0,0.1]
[1645886108993,0.2097,39300.0,39299.0,0.477439]
[1645886109187,0.0999,39306.0,39288.0,0.01016]
[1645886109188,0.13702192,39304.0,39294.0,0.13282125]
[1645886109391,0.003,39300.0,39295.0,0.1]
[1645886109590,0.377439,39299.0,39295.0,0.1]
[1645886109787,0.377439,39299.0,39291.0,0.00183467]
[1645886109987,0.377439,39297.0,39291.0,0.00183467]
[1645886110189,0.377439,39295.0,39291.0,0.00183467]
[1645886110793,0.3,39303.0,39294.0,0.1]
[1645886111189,0.0514,39302.0,39296.0,0.1]
[1645886111440,0.677439,39301.0,39296.0,0.1]
[1645886111642,0.3,39301.0,39295.0,9.0]
[1645886111842,0.587139,39300.0,39295.0,9.0]
[1645886112045,0.377439,39298.0,39295.0,9.0]
[1645886112240,0.377439,39296.0,39295.0,8.97482251]
[1645886112439,0.778839,39296.0,39295.0,8.97482251]
[1645886113339,0.479839,39296.0,39295.0,8.97482251]
[1645886113543,0.479839,39296.0,39295.0,1.15262416]
[1645886113544,2.09667568,39296.0,39295.0,1.15262416]
[1645886113744,2.09667568,39296.0,39288.0,0.00032474]
[1645886113745,1.2,39295.0,39288.0,0.00032474]
[1645886113940,1.2,39295.0,39274.0,0.05]
[1645886113941,0.57512544,39287.0,39274.0,0.05]
[1645886114140,0.19768644,39284.0,39274.0,0.05]
[1645886114339,0.3,39286.0,39262.0,0.05]
[1645886114340,0.828839,39283.0,39262.0,0.05]
[1645886114545,0.14395553,39280.0,39270.0,0.18850296]
[1645886114741,0.677439,39279.0,39270.0,0.18850296]
[1645886114942,0.377439,39279.0,39270.0,0.04]
[1645886115191,0.677439,39279.0,39270.0,0.04]
[1645886115386,0.678439,39279.0,39270.0,0.04]
[1645886115586,0.377439,39272.0,39270.0,0.04]
[1645886115789,0.377542,39278.0,39274.0,0.0999895]
[1645886115987,0.628742,39278.0,39274.0,0.0999895]
[1645886116185,0.089958,39276.0,39274.0,0.0999895]
[1645886116386,0.30769518,39275.0,39274.0,0.0999895]
[1645886116591,0.68523718,39275.0,39274.0,0.0999895]
[1645886117193,0.68523718,39275.0,39274.0,0.0749895]
[1645886118088,0.0514,39278.0,39274.0,0.0749895]
[1645886118287,0.68395192,39277.0,39274.0,0.0749895]
[1645886118488,0.377542,39277.0,39274.0,0.0749895]
[1645886118689,0.089958,39275.0,39274.0,0.0749895]
[1645886119361,0.39736792,39275.0,39274.0,0.0749895]
[1645886119759,0.090958,39275.0,39274.0,0.0749895]
[1645886120656,0.42191792,39275.0,39274.0,0.0749895]
[1645886120859,1.20251792,39275.0,39274.0,0.0749895]
[1645886121055,1.11255992,39275.0,39274.0,0.0749895]
[1645886121256,0.80615,39275.0,39274.0,0.0749895]
[1645886121457,1.183692,39275.0,39274.0,0.0749895]
[1645886121657,0.403092,39275.0,39274.0,0.0749895]
[1645886121857,0.377542,39275.0,39274.0,0.0749895]
[1645886122057,0.403092,39275.0,39274.0,0.0749895]
[1645886122261,0.377542,39275.0,39274.0,0.0749895]
[1645886122894,0.377542,39275.0,39274.0,0.1749895]
[1645886123095,0.377542,39275.0,39274.0,0.0749895]
[1645886123492,0.377542,39275.0,39274.0,0.1749895]
[1645886123893,0.403092,39275.0,39274.0,0.1749895]
[1645886124292,0.37970908,39275.0,39274.0,0.07666988]
[1645886124693,0.00216708,39275.0,39274.0,0.07666988]
[1645886124902,0.00216708,39275.0,39274.0,0.7606218]
[1645886125093,0.00216708,39275.0,39274.0,0.46438188]
[1645886125294,0.00216708,39275.0,39274.0,0.08683988]
[1645886125494,0.00216708,39275.0,39274.0,0.7707918]
[1645886125700,0.00216708,39275.0,39274.0,0.63432188]
[1645886125895,0.70792455,39294.0,39275.0,0.00433416]
[1645886125896,0.52377455,39294.0,39275.0,0.00433416]
[1645886126098,0.063678,39299.0,39275.0,0.00433416]
[1645886126099,0.30640992,39295.0,39288.0,0.1]
[1645886126347,0.30640992,39294.0,39286.0,0.1]
[1645886126548,0.15610557,39287.0,39286.0,0.1]
[1645886126851,0.089958,39286.0,39283.0,0.00034917]
[1645886127047,0.30640992,39285.0,39283.0,0.00034917]
[1645886127247,0.377542,39284.0,39283.0,0.00034917]
[1645886127451,0.377542,39284.0,39278.0,0.1]
[1645886127647,0.377542,39284.0,39282.0,0.00034918]
[1645886128147,0.30640992,39289.0,39282.0,0.00034918]
[1645886128347,0.063685,39294.0,39282.0,0.00034918]
[1645886128348,0.403092,39290.0,39282.0,0.00034918]
[1645886128548,0.115508,39288.0,39278.0,0.25075437]
[1645886128747,0.377542,39286.0,39284.0,0.00033653]
[1645886128947,0.089973,39286.0,39284.0,0.00033653]
[1645886129749,2.57127393,39296.0,39285.0,0.1]
[1645886129952,0.870573,39295.0,39287.0,0.1]
[1645886130188,1.1326078,39295.0,39287.0,0.1]
[1645886130583,0.19005079,39288.0,39287.0,0.1]
[1645886130784,0.089973,39288.0,39287.0,0.1]
[1645886131192,1.9995,39301.0,39287.0,0.1]
[1645886131386,0.089973,39300.0,39286.0,0.00033652]
[1645886131587,2.00084558,39301.0,39286.0,0.00033652]
[1645886131788,0.12725172,39299.0,39298.0,0.1]
[1645886131987,0.089973,39298.0,39296.0,0.1]
[1645886132185,0.089973,39298.0,39289.0,0.13309507]
[1645886132590,0.089973,39298.0,39293.0,0.1]
[1645886133384,0.089973,39298.0,39289.0,0.13309507]
[1645886133586,0.153648,39298.0,39287.0,0.01016]
[1645886133855,1.21207887,39298.0,39287.0,0.11016]
[1645886134048,1.21307887,39298.0,39287.0,0.1]
[1645886134450,0.869831,39295.0,39287.0,0.1]
[1645886134649,0.089973,39290.0,39289.0,0.00150803]
[1645886135649,0.39904826,39290.0,39289.0,0.00150803]
[1645886135849,1.17964826,39290.0,39289.0,0.00150803]
[1645886136048,0.39904826,39290.0,39289.0,0.00150803]
[1645886136249,0.39904826,39290.0,39287.0,0.0995008]
[1645886136848,1.17964826,39290.0,39287.0,0.0995008]
[1645886137248,1.20519826,39290.0,39287.0,0.0995008]
[1645886138700,1.20619826,39290.0,39287.0,0.0995008]
[1645886139200,0.42559826,39290.0,39287.0,0.0745008]
[1645886139401,0.116523,39290.0,39281.0,0.16546667]
[1645886139602,0.02555,39290.0,39289.0,0.00469271]
[1645886139802,0.089973,39290.0,39289.0,0.00469271]
[1645886140005,0.25470977,39303.0,39289.0,0.00469271]
[1645886140006,0.00130638,39301.0,39289.0,0.07919351]
[1645886140207,0.089973,39300.0,39293.0,0.0745008]
[1645886140405,0.001,39295.0,39293.0,0.0745008]
[1645886140604,0.001,39295.0,39294.0,0.0745008]
[1645886140801,0.22573085,39295.0,39294.0,0.0745008]
[1645886141458,1.31411395,39295.0,39294.0,0.0745008]
[1645886141656,1.31311395,39295.0,39294.0,0.0745008]
[1645886141855,1.31311395,39295.0,39293.0,0.0745008]
[1645886142055,0.3077831,39294.0,39293.0,0.0745008]
[1645886142258,0.089973,39294.0,39293.0,0.0745008]
[1645886142455,0.089973,39294.0,39289.0,0.00469271]
[1645886142656,0.089973,39293.0,39289.0,0.00469271]
[1645886142855,0.089973,39293.0,39292.0,0.0745008]
[1645886143059,0.127361,39298.0,39292.0,0.0745008]
[1645886143060,0.3087831,39300.0,39292.0,0.0745008]
[1645886143258,0.001,39300.0,39297.0,0.0745008]
[1645886143455,0.089973,39299.0,39297.0,0.0745008]
[1645886143857,0.089973,39299.0,39294.0,0.0745008]
[1645886144458,0.090973,39299.0,39294.0,0.0745008]
[1645886144656,0.090973,39299.0,39294.0,0.07607229]
[1645886144861,0.090973,39299.0,39298.0,0.0745008]
[1645886144862,0.001,39299.0,39298.0,0.0745008]
[1645886145115,0.001,39299.0,39298.0,0.5186698]
[1645886145713,0.00130339,39306.0,39299.0,0.003]
[1645886146109,0.00130339,39306.0,39304.0,0.0745008]
[1645886146312,0.089973,39305.0,39304.0,0.0745008]
[1645886146609,0.089973,39305.0,39304.0,0.0695008]
[1645886147012,0.001,39306.0,39304.0,0.0695008]
[1645886147212,0.089973,39305.0,39304.0,0.0695008]
[1645886147414,2.04898233,39313.0,39305.0,1.2]
[1645886147614,0.0033,39315.0,39312.0,0.0695008]
[1645886147812,0.0033,39315.0,39305.0,1.5077831]
[1645886148015,0.0033,39315.0,39308.0,0.0695008]
[1645886148216,0.089973,39314.0,39308.0,0.0695008]
[1645886148412,0.17481046,39313.0,39306.0,0.0695008]
[1645886148613,0.089973,39314.0,39305.0,1.2695008]
[1645886148614,0.13480244,39307.0,39305.0,1.2695008]
[1645886148846,0.0043,39315.0,39305.0,1.2695008]
[1645886149045,0.0043,39315.0,39306.0,0.3077831]
[1645886149246,0.0043,39315.0,39314.0,0.0695008]
[1645886149447,0.0043,39315.0,39314.0,0.1401908]
[1645886149848,0.093273,39315.0,39314.0,0.1401908]
[1645886150047,0.0033,39315.0,39314.0,0.1401908]
[1645886150249,0.0001,39316.0,39314.0,0.4479739]
[1645886150451,0.0011,39324.0,39315.0,0.3077831]
[1645886150648,0.00034872,39316.0,39315.0,0.3077831]
[1645886150854,0.001,39320.0,39316.0,0.00034]
[1645886151050,0.001,39320.0,39319.0,0.0695008]
[1645886151250,0.090973,39320.0,39319.0,0.0695008]
[1645886151450,0.090973,39320.0,39314.0,0.001]
[1645886151850,0.3077831,39319.0,39313.0,0.2]
[1645886152050,0.13552196,39317.0,39313.0,0.0695008]
[1645886152250,0.085015,39316.0,39313.0,0.0695008]
[1645886152449,0.085015,39316.0,39315.0,0.0695008]
[1645886152687,0.085015,39316.0,39313.0,0.002]
[1645886153089,0.085015,39316.0,39313.0,0.0715008]
[1645886153288,0.7827,39324.0,39313.0,0.0715008]
[1645886153492,0.085015,39323.0,39313.0,0.002]
[1645886153689,0.085015,39323.0,39315.0,0.0695008]
[1645886153989,0.085015,39323.0,39322.0,0.0695008]
[1645886154193,0.0011,39324.0,39322.0,0.0695008]
[1645886154391,0.085015,39323.0,39317.0,0.07112638]
[1645886154590,0.0011,39324.0,39317.0,0.07112638]
[1645886154791,0.085015,39323.0,39317.0,0.07112638]
[1645886154990,0.085015,39323.0,39317.0,0.04612638]
[1645886155390,0.17726352,39322.0,39317.0,0.04612638]
[1645886155591,0.17726352,39322.0,39315.0,0.00364639]
[1645886155789,0.00034922,39322.0,39315.0,0.00164639]
[1645886155995,0.00034922,39322.0,39321.0,0.04612638]
[1645886156194,0.0011,39326.0,39321.0,1.00213506]
[1645886156464,0.0011,39327.0,39321.0,1.00213506]
[1645886156465,0.0011,39328.0,39325.0,0.04612638]
[1645886156665,0.085015,39326.0,39321.0,0.54612638]
[1645886156963,0.085015,39326.0,39321.0,0.5]
[1645886157463,0.13563183,39328.0,39318.0,0.4449847]
[1645886157764,0.13563183,39328.0,39319.0,0.04612638]
[1645886158062,0.085015,39327.0,39319.0,0.04612638]
[1645886158567,0.3914962,39327.0,39315.0,0.00164639]
[1645886158764,0.7806,39326.0,39316.0,0.04612638]
[1645886158964,0.7806,39326.0,39315.0,0.00164639]
[1645886158965,0.7806,39324.0,39315.0,0.00164639]
[1645886159162,0.4551282,39325.0,39317.0,0.0015517]
[1645886159163,1.1720962,39323.0,39317.0,0.0015517]
[1645886159365,1.1670962,39323.0,39317.0,0.0015517]
[1645886159564,0.92957152,39322.0,39314.0,0.3895517]
[1645886159767,0.865615,39321.0,39314.0,0.3875517]
[1645886159965,0.085015,39321.0,39314.0,0.3875517]
[1645886160189,0.085015,39321.0,39314.0,0.42402764]
[1645886160389,0.085015,39320.0,39314.0,0.00034956]
[1645886160690,0.085015,39323.0,39314.0,0.04847594]
[1645886160890,0.15348329,39321.0,39314.0,0.04847594]
[1645886161098,0.085015,39320.0,39314.0,0.04812638]
[1645886161291,0.085015,39320.0,39314.0,0.00234956]
[1645886161491,0.865615,39320.0,39314.0,0.00234956]
[1645886161691,0.085015,39319.0,39314.0,0.00234956]
[1645886161891,0.085015,39318.0,39314.0,0.00034956]
[1645886162089,0.15348329,39321.0,39314.0,0.00034956]
[1645886162090,0.085015,39319.0,39314.0,0.00034956]
[1645886162290,0.085015,39319.0,39313.0,0.00157023]
[1645886162492,0.001,39318.0,39314.0,0.00034956]
[1645886162693,0.085015,39317.0,39314.0,0.00034956]
[1645886163494,0.080015,39317.0,39313.0,0.00157023]
[1645886163699,0.001,39318.0,39314.0,0.00034956]
[1645886163936,0.15348329,39321.0,39314.0,0.00034956]
[1645886163937,0.080014,39317.0,39314.0,0.00034956]
[1645886164138,0.15348329,39321.0,39314.0,0.00034956]
[1645886164338,0.080014,39320.0,39316.0,0.00163021]
[1645886164639,0.080014,39320.0,39318.0,0.04612638]
[1645886165239,0.9903,39319.0,39316.0,0.00163021]
[1645886165541,0.860614,39317.0,39316.0,0.00163021]
[1645886165739,0.16402804,39307.0,39303.0,0.27963193]
[1645886165942,0.05776208,39307.0,39304.0,0.65]
[1645886166141,0.05776208,39307.0,39303.0,0.27963193]
[1645886166343,0.7806,39306.0,39303.0,0.27963193]
[1645886166540,0.05876208,39307.0,39299.0,0.005]
[1645886167440,0.83936208,39307.0,39299.0,0.005]
[1645886167693,0.7806,39304.0,39299.0,0.005]
[1645886167891,0.7806,39304.0,39299.0,0.003]
[1645886168492,0.91935782,39300.0,39299.0,0.003]
[1645886168898,0.94490782,39300.0,39299.0,0.003]
[1645886169593,0.94490782,39300.0,39294.0,0.001]
[1645886169594,0.94490782,39300.0,39290.0,0.03512638]
[1645886169791,0.94490782,39300.0,39298.0,0.00020283]
[1645886169991,1.08674536,39299.0,39298.0,0.00020283]
[1645886170591,1.11329536,39299.0,39298.0,0.00020283]
[1645886170791,0.1437696,39291.0,39283.0,0.14564152]
[1645886170992,0.1437696,39291.0,39282.0,0.03512638]
[1645886171193,0.30614536,39290.0,39282.0,0.03512638]
[1645886171458,0.7806,39289.0,39282.0,0.03512638]
[1645886171654,0.7806,39287.0,39282.0,0.03512638]
[1645886172055,0.7806,39290.0,39282.0,0.03512638]
[1645886172256,0.7806,39290.0,39282.0,0.00998212]
[1645886172457,0.001,39287.0,39282.0,0.00998212]
[1645886172656,0.001,39287.0,39277.0,0.001]
[1645886172955,0.001,39287.0,39286.0,0.00998212]
[1645886173154,0.001,39287.0,39282.0,0.17377111]
[1645886173356,0.001,39287.0,39282.0,0.07377111]
[1645886173555,0.001,39287.0,39281.0,0.00998212]
[1645886173755,0.7806,39290.0,39281.0,0.00998212]
[1645886173958,0.35614536,39292.0,39281.0,0.00998212]
[1645886174355,0.40614536,39292.0,39281.0,0.00998212]
[1645886174554,0.40614536,39292.0,39285.0,0.00034908]
[1645886174755,0.02555,39291.0,39285.0,0.00034908]
[1645886174955,0.40614536,39292.0,39285.0,0.00034908]
[1645886175190,0.7806,39291.0,39285.0,0.00034908]
[1645886175492,1.08485254,39290.0,39281.0,0.01198212]
[1645886175689,1.18485254,39290.0,39286.0,0.00034907]
[1645886176090,0.7806,39288.0,39286.0,0.00034907]
[1645886176291,0.30425254,39287.0,39286.0,0.00034907]
[1645886176692,0.30425254,39287.0,39281.0,0.01098212]
[1645886176693,1.13175254,39287.0,39282.0,0.00998212]
[1645886176992,1.13175254,39287.0,39285.0,0.00034908]
[1645886176993,0.80615,39286.0,39285.0,0.00034908]
[1645886177192,1.37471568,39286.0,39285.0,0.00034908]
[1645886177492,1.37366443,39286.0,39285.0,0.00034908]
[1645886177894,1.46368231,39286.0,39275.0,0.00433416]
[1645886178092,0.80509875,39282.0,39275.0,0.00433416]
[1645886178292,0.80509875,39280.0,39275.0,0.00433416]
[1645886178493,0.77954875,39278.0,39275.0,0.00433416]
[1645886178692,0.80509875,39276.0,39275.0,0.00433416]
[1645886178949,1.15625129,39276.0,39275.0,0.00433416]
[1645886179252,1.20625129,39276.0,39275.0,0.00433416]
[1645886179849,1.30625277,39276.0,39275.0,0.00433416]
[1645886180251,1.55615277,39276.0,39275.0,0.00433416]
[1645886180752,1.55715277,39276.0,39275.0,0.00433416]
[1645886181151,1.76685277,39276.0,39275.0,0.00433416]
[1645886181453,0.90278564,39276.0,39275.0,0.00433416]
[1645886181652,0.0479,39276.0,39275.0,0.00433416]
[1645886181855,0.0469,39276.0,39275.0,0.00433416]
[1645886182252,0.13691788,39276.0,39275.0,0.00433416]
[1645886182690,0.85405,39276.0,39275.0,0.00433416]
[1645886183093,0.8285,39276.0,39275.0,0.00433416]
[1645886183891,0.8275,39276.0,39275.0,0.00433416]
[1645886184090,0.85305,39276.0,39275.0,0.00433416]
[1645886184291,1.15942479,39276.0,39275.0,0.006038]
[1645886184694,1.17017644,39276.0,39275.0,0.006038]
[1645886184891,1.26019432,39276.0,39275.0,0.006038]
[1645886185290,1.31019432,39276.0,39275.0,0.006038]
[1645886185690,1.50999432,39276.0,39275.0,0.006038]
[1645886186354,1.33467479,39276.0,39275.0,0.006038]
[1645886186550,0.04902225,39276.0,39275.0,0.006038]
[1645886186747,0.14902225,39276.0,39275.0,0.006038]
[1645886186948,0.14402225,39276.0,39275.0,0.006038]
[1645886187647,0.82462225,39276.0,39275.0,0.006038]
[1645886187847,0.87462225,39276.0,39275.0,0.006038]
[1645886188248,0.09402225,39276.0,39275.0,0.006038]
[1645886188447,0.90017225,39276.0,39275.0,0.006038]
[1645886188648,0.09602225,39276.0,39275.0,0.006038]
[1645886189448,0.09814462,39276.0,39275.0,0.00593105]
[1645886189652,0.82874462,39276.0,39275.0,0.00593105]
[1645886190299,1.13299716,39276.0,39275.0,0.00593105]
[1645886190499,0.04614462,39276.0,39275.0,0.00593105]
[1645886190705,0.00412237,39276.0,39275.0,0.00593105]
[1645886191901,0.00212237,39276.0,39275.0,0.00593105]
[1645886192705,0.00212237,39276.0,39275.0,0.00693105]
[1645886193842,0.00212237,39276.0,39275.0,0.00593105]
[1645886194245,2.237e-05,39276.0,39275.0,0.38320505]
[1645886194454,0.26613475,39296.0,39275.0,0.38320505]
[1645886194455,0.3897,39298.0,39276.0,0.02555]
[1645886194646,0.3897,39298.0,39291.0,0.00998212]
[1645886194647,0.69395254,39298.0,39291.0,0.00998212]
[1645886194850,0.0999,39302.0,39283.0,0.1]
[1645886194851,0.0999,39302.0,39295.0,0.00998212]
[1645886195044,0.0999,39302.0,39294.0,0.00998212]
[1645886195243,0.65815254,39308.0,39294.0,0.00998212]
[1645886195244,0.1998,39303.0,39294.0,0.00998212]
[1645886195444,0.17245366,39300.0,39292.0,0.17057374]
[1645886195643,0.2499,39299.0,39295.0,0.00998212]
[1645886195845,0.2499,39299.0,39288.0,0.00998212]
[1645886196145,0.2499,39299.0,39295.0,0.0003283]
[1645886196543,0.2509,39299.0,39295.0,0.0003283]
[1645886196745,2.40512341,39296.0,39295.0,0.0003283]
[1645886197144,3.18572341,39296.0,39284.0,0.05998212]
[1645886197353,3.18572341,39296.0,39294.0,0.00032831]
[1645886197603,0.7806,39295.0,39294.0,0.00032831]
[1645886197796,1.13433258,39295.0,39294.0,0.00032831]
[1645886197995,1.13433258,39295.0,39277.0,0.02555]
[1645886198195,0.17318579,39289.0,39280.0,0.23550626]
[1645886198398,1.13433258,39295.0,39290.0,0.34637158]
[1645886198399,0.94880324,39293.0,39290.0,0.34637158]
[1645886198597,0.16820324,39293.0,39290.0,0.34637158]
[1645886200399,0.16820324,39293.0,39276.0,0.05]
[1645886200400,0.80615,39291.0,39276.0,0.05]
[1645886200601,0.1,39283.0,39275.0,0.00433416]
[1645886200804,0.80615,39277.0,39275.0,0.00433416]
[1645886201001,1.10295,39276.0,39271.0,0.01]
[1645886201201,0.80615,39274.0,39271.0,0.01]
[1645886201458,0.8275,39273.0,39260.0,0.23196757]
[1645886201656,0.8775,39273.0,39260.0,0.23196757]
[1645886202254,1.08242704,39272.0,39265.0,0.0003489]
[1645886202453,0.7806,39272.0,39265.0,0.0003489]
[1645886202660,0.05,39272.0,39265.0,0.0003489]
[1645886202855,2.65815104,39267.0,39265.0,0.0003489]
[1645886203253,2.65815104,39267.0,39259.0,0.20040767]
[1645886203454,2.65815104,39267.0,39264.0,0.0003489]
[1645886203856,2.70815104,39267.0,39264.0,0.0003489]
[1645886204054,0.05,39266.0,39264.0,0.0003489]
[1645886204454,0.05,39266.0,39258.0,0.19042983]
[1645886204658,0.02555,39295.0,39266.0,0.02555]
[1645886204860,0.362,39300.0,39285.0,0.1]
[1645886205122,0.48650809,39310.0,39285.0,0.1]
[1645886205123,0.063657,39312.0,39290.0,0.1]
[1645886205327,0.20987229,39316.0,39300.0,0.1]
[1645886205328,0.0043,39316.0,39300.0,0.1]
[1645886205520,0.33755166,39314.0,39301.0,0.377274]
[1645886205721,0.1,39314.0,39302.0,0.1]
[1645886205921,0.0001257,39313.0,39306.0,0.1]
[1645886206120,0.0001257,39313.0,39308.0,0.099718]
[1645886206121,0.00062849,39313.0,39308.0,0.099718]
[1645886206322,0.00062849,39313.0,39308.0,0.06361]
[1645886206724,0.00062849,39313.0,39308.0,0.06561]
[1645886207022,0.000282,39312.0,39308.0,0.002]
[1645886207321,0.7806,39313.0,39308.0,0.002]
[1645886207322,0.000282,39310.0,39308.0,0.002]
[1645886207922,0.000282,39310.0,39298.0,0.33228477]
[1645886208120,0.000282,39310.0,39298.0,0.28228477]
[1645886208521,0.000282,39310.0,39298.0,0.0469]
[1645886208522,0.000282,39308.0,39298.0,0.0469]
[1645886208949,0.000282,39308.0,39293.0,0.02755]
[1645886209150,0.000282,39308.0,39294.0,0.5]
[1645886209351,0.000282,39308.0,39303.0,0.00250469]
[1645886210460,0.000282,39304.0,39303.0,0.00250469]
[1645886211554,0.806432,39304.0,39303.0,0.00250469]
[1645886213094,0.806432,39304.0,39303.0,0.00124469]
[1645886213893,1.106232,39304.0,39303.0,0.00124469]
[1645886214094,1.156332,39304.0,39303.0,0.00124469]
[1645886214494,0.906432,39304.0,39303.0,0.00263069]
[1645886215093,1.106232,39304.0,39303.0,0.00263069]
[1645886215492,0.80615,39302.0,39290.0,0.05]
[1645886215697,0.80615,39300.0,39283.0,0.01016]
[1645886215893,0.000282,39294.0,39281.0,0.05]
[1645886216094,0.000282,39294.0,39284.0,0.19706473]
[1645886216550,0.000282,39294.0,39284.0,0.19036545]
[1645886216747,0.001,39294.0,39285.0,0.3]
[1645886216950,0.001,39294.0,39286.0,0.01017]
[1645886217545,0.001,39294.0,39287.0,0.06366041]
[1645886217747,0.001,39294.0,39288.0,0.01017]
[1645886217945,0.96249631,39301.0,39285.0,0.01017]
[1645886218147,0.18189631,39301.0,39285.0,0.33572]
[1645886218352,0.000282,39304.0,39290.0,0.16837493]
[1645886219248,0.780882,39304.0,39290.0,0.16837493]
[1645886219447,0.7818719,39304.0,39292.0,0.00145333]
[1645886219647,0.0512719,39304.0,39292.0,0.00145333]
[1645886219850,0.02555,39302.0,39292.0,0.00145333]
[1645886220102,0.000282,39301.0,39292.0,0.00145333]
[1645886220503,0.000282,39293.0,39292.0,0.00145333]
[1645886220908,0.7806,39293.0,39292.0,0.00145333]
[1645886221102,0.830882,39293.0,39292.0,0.00145333]